Cogmind - Beta 16 @@@ ROGUE MODE // 2026.01.02 @ 23:34:58 Player: PE-P51 Result: Destroyed by G-50 Soldier with Heavy Laser Performance ------------- Evolutions (3) 1500 Regions Visited (12) 2400 Robots Destroyed (117) 585 Value Destroyed (2973) 2973 Prototype IDs (241) 4820 Alien Tech Used (0) 0 Bonus (3549) 3549 TOTAL SCORE: 15827 Bonus ------- Aligned with FarCom 300 Met Data Miner 300 Used Data Conduit 3000 Friendly Fire -51 Cogmind --------- Core Integrity 0/700 Matter 240/300 Energy 96/100 System Corruption 0% Temperature Cool (12) Movement Flying (35) Location -6/Proximity Caves Parts ------- > --- POWER (1) -------- (None) > --- PROPULSION (4) --- Improved Cesium-ion Thruster > --- UTILITY (6) ------ Core Analyzer Transmission Jammer Deep Network Scanner Ghost Barrier > --- WEAPON (2) ------- Spear > --- INVENTORY (5) ---- Light Angular Momentum Engine VTOL Module Spear Dirty Bomb Trap Peak State ------------ > --- POWER ------------ Micro Fission Core > --- PROPULSION ------- Improved Cesium-ion Thruster Cooled VTOL Module Cooled VTOL Module Cooled VTOL Module > --- UTILITY ---------- Lightpack 2.0 Improved Terrain Scanner Advanced Terrain Scan Processor Advanced Targeting Computer > --- WEAPON ----------- Guided Plasma Cannon Spear > --- INVENTORY -------- Improved Ion Engine Light Deuterium Engine Light Nuclear Core Heavy Deuterium Engine Micro Nuclear Core Light Angular Momentum Engine Flight Unit Flight Unit VTOL Module VTOL Module Xenon Bombardment Thruster Xenon Bombardment Thruster Xenon Bombardment Thruster Xenon Bombardment Thruster Xenon Bombardment Thruster Improved Heat Sink Improved Sensor Array Improved Sensor Array Terrain Scanner Transmission Jammer Light Armor Plating Improved Light Armor Plating Hacking Suite Recalibrator Mini Drone Bay Advanced Beam Rifle Ion Cannon Cooled Particle Cannon Cooled Particle Cannon Advanced Assault Cannon Heavy Missile Launcher Micro-nuke Launcher Plasma Cutter Impact Mace Spear Spear [Rating: 90] Favorites ----------- Power Ion Engine Engine Ion Engine Power Core Micro Nuclear Core Propulsion Light Treads Treads Light Treads Leg Aluminum Leg Flight Unit Xenon Bombardment Thruster Utility Lightpack 2.0 Device Heat Sink Storage Lightpack 2.0 Processor Advanced Targeting Computer Hackware Hacking Suite Protection Hardened Light Armor Plating Weapon Beam Cannon Energy Gun Medium Laser Energy Cannon Beam Cannon Ballistic Gun Assault Rifle Launcher Heavy Missile Launcher Special Weapon Plasma Cutter Piercing Weapon Spear Special Melee Weapon Datajack Build | -11 -10 -10 -10 -9 -8 -7 -7 -7 -7 -7 -7 -6 ------- Run | Yrd Mat Min Exi Min Mat Fac Was Fac Low Low Dat Pro Slots Evolved 6 | . . . . . 4 2 . . . . . . Power . | . . . . . . . . . . . . . Propulsion 2 | . . . . . . 2 . . . . . . Utility 4 | . . . . . 4 . . . . . . . Weapon . | . . . . . . . . . . . . . Parts Attached 79 | . 11 5 . . 15 19 . 18 7 . 4 . Power 9 | . . 1 . . 2 3 . 1 2 . . . Engine 5 | . . 1 . . 2 1 . . 1 . . . Core 4 | . . . . . . 2 . 1 1 . . . Reactor . | . . . . . . . . . . . . . Propulsion 26 | . 7 1 . . 5 5 . 8 . . . . Treads 6 | . 3 1 . . 2 . . . . . . . Leg 7 | . 4 . . . 3 . . . . . . . Wheel . | . . . . . . . . . . . . . Hover . | . . . . . . . . . . . . . Flight 13 | . . . . . . 5 . 8 . . . . Utility 27 | . 2 1 . . 7 4 . 6 3 . 4 . Device 13 | . 1 . . . 4 1 . 4 2 . 1 . Storage 3 | . 1 1 . . 1 . . . . . . . Processor 3 | . . . . . 1 . . . 1 . 1 . Hackware 4 | . . . . . . 1 . 1 . . 2 . Protection 4 | . . . . . 1 2 . 1 . . . . Artifact . | . . . . . . . . . . . . . Weapon 17 | . 2 2 . . 1 7 . 3 2 . . . Energy Gun 1 | . . . . . . . . 1 . . . . Energy Cannon 6 | . 2 1 . . 1 2 . . . . . . Ballistic Gun 1 | . . . . . . 1 . . . . . . Ballistic Cannon . | . . . . . . . . . . . . . Launcher 3 | . . 1 . . . . . 1 1 . . . Special Weapon 1 | . . . . . . . . . 1 . . . Impact Weapon . | . . . . . . . . . . . . . Slashing Weapon . | . . . . . . . . . . . . . Piercing Weapon 4 | . . . . . . 3 . 1 . . . . Special Melee Weapon 1 | . . . . . . 1 . . . . . . Unidentified Prototypes 6 | . . . . . 1 2 . 1 . . 2 . Parts Lost 23 | . . 4 . . 3 1 . 3 1 2 9 . Power 4 | . . 1 . . 1 . . . 1 . 1 . Propulsion 7 | . . 1 . . . . . 1 . 1 4 . Utility 7 | . . 1 . . 1 . . 1 . 1 3 . Weapon 5 | . . 1 . . 1 1 . 1 . . 1 . Highest Loss Streak 9 | . . 4 . . 1 1 . 1 1 1 9 . To Critical Strikes . | . . . . . . . . . . . . . Average Backups 27 | . 16 24 22 23 24 31 38 38 35 35 31 3 Power 3 | . 2 2 2 2 3 3 4 4 4 4 4 1 Propulsion 5 | . 4 4 4 4 5 5 5 7 9 8 7 1 Utility 8 | . 4 7 7 8 6 10 14 14 11 11 10 . Weapon 8 | . 4 8 8 8 8 11 13 11 9 9 7 1 Tool/Special . | . . . . . . . . . . . . . Unused Backups 57 | . 5 . 1 . 10 10 1 11 5 . 13 1 Power 6 | . 1 . . . . 2 . . 1 . 2 . Propulsion 11 | . 1 . . . 1 3 1 2 1 . 1 1 Utility 19 | . 2 . . . 4 . . 5 1 . 7 . Weapon 17 | . . . 1 . 4 5 . 3 2 . 2 . Tool/Special 4 | . 1 . . . 1 . . 1 . . 1 . Average Slot Usage (%) 87 | . 98 97 100 100 79 81 84 81 76 75 76 46 Engine 7 | . 14 12 14 14 8 1 . . . . . . Core 2 | . . . . . . 5 7 7 6 7 6 . Treads 12 | . 20 27 28 28 8 . . . . . . . Leg 2 | . 7 . . . 9 . . . . . . . Flight 12 | . . . . . . 28 30 29 30 29 27 7 Device 7 | . 12 12 . . 9 . . 5 6 2 5 7 Storage 12 | . 14 15 28 28 9 7 7 7 7 7 5 . Processor 5 | . . . . . 8 7 7 7 14 15 14 7 Hackware 1 | . . . . . . 6 7 7 . . 1 15 Protection 2 | . . . . . 8 6 7 . . 3 1 . Energy Gun 1 | . 9 . . . . . . . . . . . Energy Cannon 12 | . 8 26 28 28 18 2 . 3 3 . . . Ballistic Gun 2 | . 9 . . . . 2 7 . . . . . Piercing Weapon 2 | . . . . . . 5 7 8 3 . 9 7 Peak Build Rating 90 | . 9 9 13 13 58 79 79 88 90 81 85 37 Average Rating 43 | . 8 8 10 13 48 72 78 82 81 79 77 37 On Entrance 42 | 6 6 9 9 13 13 56 78 79 80 81 79 37 Avg Prop Armor Cover (%) . | . . . . . . . . . . . . . Naked Turns . | . . . . . . . . . . . . . Heaviest Build 96 | 14 92 96 96 96 96 25 19 23 21 21 21 3 Greatest Support 40 | 20 40 40 40 40 40 32 24 24 21 27 22 6 Greatest Overweight (x) 4 | . 4 4 2 2 2 1 . 1 . . . . Average Overweight (x) . | . 1 2 2 2 . . . . . . . . Largest Inventory Capacity 40 | . 25 25 25 25 40 40 40 40 40 40 40 5 Average Capacity 32 | . 20 25 25 25 39 40 40 40 40 40 35 5 Most Carried 40 | . 25 25 25 25 40 40 40 40 38 38 37 4 Average Carried 27 | . 16 24 23 25 24 31 38 38 37 37 32 4 Final Capacity 40 | 8 25 25 25 25 40 40 40 40 40 40 5 5 Final Carried 40 | 6 25 22 25 25 40 38 40 37 38 37 4 4 Class Distribution -------------------- 44% | Mutant 39% | Hauler-Sprinter 14% | Hauler-Mutant Dominant Class ---------------- Mutant | -10/Materials Mutant | -10/Mines Mutant | -10/Exiles Mutant | -9/Mines Hauler-Mutant | -8/Materials Hauler-Sprinter | -7/Factory Hauler-Sprinter | -7/Waste Hauler-Sprinter | -7/Factory Hauler-Sprinter | -7/Lower Caves Hauler-Sprinter | -7/Lower Caves Hauler-Sprinter | -7/Data Miner Hauler-Sprinter | -6/Proximity Caves Resources | -11 -10 -10 -10 -9 -8 -7 -7 -7 -7 -7 -7 -6 ----------- Run | Yrd Mat Min Exi Min Mat Fac Was Fac Low Low Dat Pro Matter Collected 1838 | 200 270 3 . . 266 240 . 357 348 127 27 . Remotely . | . . . . . . . . . . . . . Salvage Created 4015 | . 717 59 . . 1055 736 . 963 367 91 27 . Parts 225 | . 48 7 . . 61 37 . 53 13 3 3 . Haulers Intercepted 12 | . 2 . . . 4 3 . 3 . . . . Recyclers Shooed 2 | . . . . . . 1 . 1 . . . . Parts Field Recycled . | . . . . . . . . . . . . . Retrieved Matter . | . . . . . . . . . . . . . Parts Self-Destructed 11 | . . . . . . . . . 10 1 . . Prevented . | . . . . . . . . . . . . . Parts Restored . | . . . . . . . . . . . . . Kills | -11 -10 -10 -10 -9 -8 -7 -7 -7 -7 -7 -7 -6 ------- Run | Yrd Mat Min Exi Min Mat Fac Was Fac Low Low Dat Pro Combat Hostiles Destroyed 77 | . 13 11 . . 15 7 . 14 10 7 . . Melee 3 | . . . . . . 1 . 2 . . . . Guns 11 | . 11 . . . . . . . . . . . Cannons 40 | . 2 6 . . 14 6 . 8 4 . . . AOE 21 | . . 5 . . . . . 4 5 7 . . Classes Destroyed 17 | . 5 2 . . 6 2 . . 1 1 . . Worker 11 | . 1 1 . . 3 4 . 2 . . . . Builder 3 | . 1 . . . . 2 . . . . . . Tunneler 3 | . . . . . 1 . . 2 . . . . Hauler 12 | . 2 . . . 4 3 . 3 . . . . Recycler 5 | . . . . . 1 2 . 2 . . . . Minesweeper 1 | . . . . . . . . . 1 . . . Mechanic 1 | . . . . . . 1 . . . . . . Operator 6 | . 2 . . . 2 . . 2 . . . . Watcher 5 | . . . . . 1 2 . 2 . . . . Swarmer 23 | . . 3 . . 4 5 . 7 1 3 . . Grunt 26 | . 13 . . . 4 1 . 1 6 1 . . Brawler 2 | . . . . . 1 . . . 1 . . . Sentry 8 | . . . . . 4 . . 2 1 1 . . Hunter 3 | . . . . . 2 . . 1 . . . . Programmer 5 | . . . . . . 1 . 3 1 . . . Decomposer 1 | . . . . . . . . . 1 . . . Master Thief 2 | . . . . . . . . . . 2 . . Assembled 8 | . . 8 . . . . . . . . . . Best Kill Streak 8 | . 3 8 . . 4 7 . 6 4 3 1 . Combat Bots Only 8 | . 3 8 . . 4 3 . 4 4 3 . . Max Kills in Single Turn 3 | . 1 3 . . 1 1 . 2 2 2 1 . Gunslinging . | . . . . . . . . . . . . . Exploded 3 | . . 3 . . . . . 2 2 2 . . Melee 1 | . . . . . . 1 . 1 . . . . Uniques/NPCs Destroyed 1 | . . . . . . . . . . . 1 . Data Miner (-7/Data Miner) Combat | -11 -10 -10 -10 -9 -8 -7 -7 -7 -7 -7 -7 -6 -------- Run | Yrd Mat Min Exi Min Mat Fac Was Fac Low Low Dat Pro Hostile Shots Fired 447 | . 59 31 . . 78 47 . 120 39 50 20 3 Missed 191 | . 20 7 . . 24 21 . 61 19 30 7 2 Hits 256 | . 39 24 . . 54 26 . 59 20 20 13 1 Melee 6 | . . 6 . . . . . . . . . . Projectile 250 | . 39 18 . . 54 26 . 59 20 20 13 1 AOE 5 | . . 4 . . . . . 1 . . . . Critical Strikes 5 | . . 1 . . 2 . . 1 1 . . . Damage Taken 4169 | . 474 521 . . 757 385 . 854 203 367 588 20 Core 924 | . 56 110 . . 54 106 . 219 43 85 231 20 Absorbed by Shields . | . . . . . . . . . . . . . Regen/Repaired (Parts) 62 | . . . . . . 19 . 43 . . . . Core Remaining (%) 74 | 100 . . . 33 90 . . . . . . . Volleys Fired 253 | . 63 16 . . 59 12 . 49 43 11 . . Largest 2 | . 2 2 . . 2 1 . 1 1 1 . . Hottest 120 | . 120 120 . . 120 120 . 120 120 39 . . Shots Fired 390 | . 126 30 1 . 118 12 . 49 43 11 . . Gun 113 | . 110 . . . . . . 3 . . . . Cannon 248 | . 16 28 1 . 118 12 . 42 31 . . . Launcher 29 | . . 2 . . . . . 4 12 11 . . Special . | . . . . . . . . . . . . . Kinetic 55 | . 55 . . . . . . . . . . . Thermal 306 | . 71 28 1 . 118 12 . 45 31 . . . Explosive 29 | . . 2 . . . . . 4 12 11 . . Electromagnetic . | . . . . . . . . . . . . . Robot Hit Streak 14 | . 9 4 1 . 12 12 . 14 12 1 . . Robot Miss Streak 3 | . 3 3 . . 3 . . 2 1 3 . . Penetration Max . | . . . . . . . . . . . . . Secondary Targets . | . . . . . . . . . . . . . Shots Hit Robots 264 | . 80 16 1 . 78 38 . 38 11 1 1 . Core Hits 170 | . 36 16 1 . 39 18 . 26 17 16 1 . Critical Kills 1 | . . . . . 1 . . . . . . . Critical Parts Destroyed . | . . . . . . . . . . . . . Critical Strikes 10 | . 5 . . . 1 2 . 2 . . . . Burn 5 | . 5 . . . . . . . . . . . Meltdown 1 | . . . . . 1 . . . . . . . Impale 4 | . . . . . . 2 . 2 . . . . Melee Attacks 139 | . . . . . . 41 . 64 15 . 19 . Impact . | . . . . . . . . . . . . . Slashing . | . . . . . . . . . . . . . Piercing 138 | . . . . . . 40 . 64 15 . 19 . Sneak Attacks 29 | . . . . . . 15 . 11 2 . 1 . Combat Hostiles . | . . . . . . . . . . . . . Follow-up Attacks 1 | . . . . . . . . 1 . . . . Damage Inflicted 10779 | . 1044 563 17 18 1539 2097 . 3155 1264 1009 73 . Guns 901 | . 881 . . . . . . 20 . . . . Cannons 4456 | . 157 313 17 . 1490 436 . 1547 496 . . . Explosions 2432 | . . 224 . . . . . 574 625 1009 . . Melee 2891 | . . . . . . 1661 . 1014 143 . 73 . Ramming 99 | . 6 26 . 18 49 . . . . . . . Kinetic 455 | . 455 . . . . . . . . . . . Thermal 4902 | . 583 313 17 . 1490 436 . 1567 496 . . . Explosive 2432 | . . 224 . . . . . 574 625 1009 . . Electromagnetic . | . . . . . . . . . . . . . Impact . | . . . . . . . . . . . . . Slashing . | . . . . . . . . . . . . . Piercing 2891 | . . . . . . 1661 . 1014 143 . 73 . Highest Corruption 7 | . . 5 5 5 . . 7 7 . . . . Average Corruption 4 | . . 4 5 5 . . 7 3 . . . . Corruption Purged 8 | . . . . . . . . 8 . . . . Corruption Blocked . | . . . . . . . . . . . . . Effects 39 | . . 2 15 7 . . 1 14 . . . . Message Errors 8 | . . . 3 2 . . . 3 . . . . Matter Fused 9 | . . . 2 2 . . 1 4 . . . . Heat Flow Errors 4 | . . . 2 1 . . . 1 . . . . Energy Discharges 7 | . . 1 4 . . . . 2 . . . . Parts Fused 1 | . . . 1 . . . . . . . . . Data Loss (minor) 8 | . . . 2 2 . . . 4 . . . . Misfires 1 | . . . 1 . . . . . . . . . Alerts 1 | . . 1 . . . . . . . . . . Overload Shots 12 | . . . . . . . . 8 4 . . . Effects 2 | . . . . . . . . 2 . . . . Heat Surge 2 | . . . . . . . . 2 . . . . Overflow Damage 716 | . 1 48 . . 1 421 . 150 52 43 . . Projectiles 106 | . 1 6 . . 1 9 . 37 52 . . . Explosions 127 | . . 42 . . . . . 42 . 43 . . Melee 483 | . . . . . . 412 . 71 . . . . Knockbacks . | . . . . . . . . . . . . . Impact . | . . . . . . . . . . . . . Kinetic . | . . . . . . . . . . . . . Secondary . | . . . . . . . . . . . . . Self-Inflicted Damage 43 | . . 41 . . . . . . 2 . . . Shots 3 | . . 2 . . . . . . 1 . . . Rammed 9 | . 1 4 . 4 . . . . . . . . Targets Rammed 18 | . 2 5 . 4 7 . . . . . . . Kicked 7 | . 1 . . . 6 . . . . . . . Crushed 2 | . . 1 . . 1 . . . . . . . Highest Temperature 261 | . 93 175 249 238 207 245 . 261 228 32 . . Average Temperature 80 | . 35 66 96 122 69 120 . 87 86 11 . . Received Heat Transfer 690 | . 258 . . . 234 24 . 78 24 63 . 9 Effects 2 | . . . . 1 . . . 1 . . . . Energy Bleed 2 | . . . . 1 . . . 1 . . . . Siege Activations . | . . . . . . . . . . . . . Martial Activations . | . . . . . . . . . . . . . Shielding Activations . | . . . . . . . . . . . . . Robots Disrupted . | . . . . . . . . . . . . . Combat Hostiles . | . . . . . . . . . . . . . Robots Corrupted . | . . . . . . . . . . . . . Combat Hostiles . | . . . . . . . . . . . . . Parts Fried . | . . . . . . . . . . . . . Impact Corruptions . | . . . . . . . . . . . . . Robots Melted 2 | . . . . . 1 . . . 1 . . . Combat Hostiles 2 | . . . . . 1 . . . 1 . . . Parts Melted 20 | . 5 . . . 6 1 . 6 2 . . . Heat Transferred 10492 | . 1961 666 37 . 3071 960 . 3007 790 . . . Parts Sabotaged . | . . . . . . . . . . . . . Parts Stolen . | . . . . . . . . . . . . . Parts Stripped . | . . . . . . . . . . . . . Power Chain Reactions . | . . . . . . . . . . . . . Alert | -11 -10 -10 -10 -9 -8 -7 -7 -7 -7 -7 -7 -6 ------- Run | Yrd Mat Min Exi Min Mat Fac Was Fac Low Low Dat Pro Maximum Alert Level 2 | . . . . . . 1 . 2 . . . . Low Security (%) 92 | . 100 100 . 100 100 96 100 60 . . . . Level 1 5 | . . . . . . 3 . 24 . . . . Level 2 2 | . . . . . . . . 14 . . . . Level 3 . | . . . . . . . . . . . . . Level 4 . | . . . . . . . . . . . . . Level 5 . | . . . . . . . . . . . . . High Security . | . . . . . . . . . . . . . Max Security . | . . . . . . . . . . . . . Peak Influence 552 | . 91 60 . . 198 228 92 552 . . . . Initial 77 | . . 1 . . . 63 77 50 . . . . Average 73 | . 24 3 . . 75 83 80 217 . . . . Influence Increases 3139 | . 434 79 . . 510 436 15 1200 225 220 20 . Destroy 0b10 Robot/C 1360 | . 260 60 . . 300 140 . 280 200 100 20 . Destroy 0b10 Robot/NC 230 | . 30 5 . . 60 70 . 60 5 . . . Destroy Leader 314 | . 64 10 . . 100 30 . 90 20 . . . Successful Hack 81 | . 19 . . . 18 12 . 32 . . . . Select Force Hacks 30 | . 30 . . . . . . . . . . . Disable Machine 60 | . . . . . . . . 60 . . . . Destroy Structure 74 | . 1 4 . . 2 4 . 63 . . . . Partial Spotted 180 | . . . . . . 60 15 105 . . . . Lose Combat Pursuer 810 | . 30 . . . 30 120 . 510 . 120 . . Influence Decreases 3139 | . 429 84 . . 371 355 163 793 658 136 150 . Entered New Map 563 | . . 4 . . . 76 143 22 178 10 130 . Time Decay 2236 | . 429 80 . . 341 269 20 491 470 116 20 . Search Patrol Dispatched 100 | . . . . . . . . 100 . . . . Lost Part 90 | . . . . . 30 10 . 30 10 10 . . Purge Threat 150 | . . . . . . . . 150 . . . . Squads Dispatched 25 | . 6 . . . 2 2 . 14 . 1 . . Investigation 11 | . 4 . . . 2 . . 5 . . . . Extermination 5 | . . . . . . 1 . 4 . . . . Reinforcement 8 | . 2 . . . . 1 . 5 . . . . Assault 1 | . . . . . . . . . . 1 . . Garrison . | . . . . . . . . . . . . . Intercept . | . . . . . . . . . . . . . Searches Triggered 1 | . . . . . . . . 1 . . . . Construction Impeded 1 | . . . . . . 1 . . . . . . Haulers Reinforced 3 | . . . . . . . . 3 . . . . Active Scanning Responses . | . . . . . . . . . . . . . Cargo Convoy Interrupts 1 | . . . . . . 1 . . . . . . Stealth | -11 -10 -10 -10 -9 -8 -7 -7 -7 -7 -7 -7 -6 --------- Run | Yrd Mat Min Exi Min Mat Fac Was Fac Low Low Dat Pro Distress Signals 9 | . 4 . . . 3 1 . 1 . . . . Communications Jammed . | . . . . . . . . . . . . . Distress Signals . | . . . . . . . . . . . . . Times Spotted 214 | . 30 25 . 2 32 24 6 62 9 17 4 3 Peak Tracking Total 11 | . 5 9 . 2 5 5 6 11 3 9 4 3 Tactical Retreats 22 | . 1 . . . 2 3 . 12 . 4 . . Traps | -11 -10 -10 -10 -9 -8 -7 -7 -7 -7 -7 -7 -6 ------- Run | Yrd Mat Min Exi Min Mat Fac Was Fac Low Low Dat Pro Traps Triggered 10 | . 3 . . . 2 3 . 2 . . . . Indirectly . | . . . . . . . . . . . . . Trap Hack Attempts . | . . . . . . . . . . . . . Triggered . | . . . . . . . . . . . . . Disarmed . | . . . . . . . . . . . . . Reprogrammed . | . . . . . . . . . . . . . Reused . | . . . . . . . . . . . . . Traps Extracted . | . . . . . . . . . . . . . Installed . | . . . . . . . . . . . . . Triggered . | . . . . . . . . . . . . . Most Traps Carried 2 | . . . . . . . . . 2 2 2 1 Machines | -11 -10 -10 -10 -9 -8 -7 -7 -7 -7 -7 -7 -6 ---------- Run | Yrd Mat Min Exi Min Mat Fac Was Fac Low Low Dat Pro Machines Disabled 4 | . . . . . . . . 4 . . . . Max in Single Turn 1 | . . . . . . . . 1 . . . . Machines Repaired . | . . . . . . . . . . . . . Machines Dismantled . | . . . . . . . . . . . . . Machines Sabotaged . | . . . . . . . . . . . . . Overloaded Fab Kills . | . . . . . . . . . . . . . Hacking | -11 -10 -10 -10 -9 -8 -7 -7 -7 -7 -7 -7 -6 --------- Run | Yrd Mat Min Exi Min Mat Fac Was Fac Low Low Dat Pro Machines Accessed 37 | . 5 . 1 . 6 6 . 15 1 . 3 . Terminals 19 | . 4 . . . 6 1 . 7 1 . . . Fabricators 5 | . . . . . . 2 . 3 . . . . Repair Stations 4 | . . . . . . 1 . 3 . . . . Recycling Units 1 | . 1 . . . . . . . . . . . Scanalyzers 4 | . . . . . . 2 . 2 . . . . Garrison Access . | . . . . . . . . . . . . . Total Hacks 125 | . 10 . 1 . 19 21 . 51 1 . 22 . Successful 81 | . 7 . 1 . 7 16 . 27 1 . 22 . Failed 44 | . 3 . . . 12 5 . 24 . . . . Catastrophic 6 | . . . . . 2 1 . 3 . . . . Database Lockouts . | . . . . . . . . . . . . . Manual 24 | . 1 . 1 . 8 . . 14 . . . . Terminals 52 | . 9 . . . 19 3 . 20 1 . . . Fabricators 11 | . . . . . . 2 . 9 . . . . Repair Stations 13 | . . . . . . 2 . 11 . . . . Recycling Units 1 | . 1 . . . . . . . . . . . Scanalyzers 25 | . . . . . . 14 . 11 . . . . Garrison Access . | . . . . . . . . . . . . . Terminal Hacks 45 | . 6 . 1 . 7 . . 8 1 . 22 . Record 9 | . . . . . 2 . . . 1 . 6 . Part Schematic 8 | . . . . . . . . . . . 8 . Robot Schematic 5 | . . . . . . . . . . . 5 . Prototype ID Bank 8 | . 3 . . . 1 . . 1 . . 3 . Branch Access Points 2 | . . . . . 1 . . 1 . . . . Terminal Index 1 | . . . . . . . . 1 . . . . Fabricator Index 1 | . . . . . . . . 1 . . . . Scanalyzer Index 1 | . . . . . . . . 1 . . . . Alert Level 4 | . 1 . . . 1 . . 2 . . . . Unreport Threat 1 | . . . . . . . . 1 . . . . Locate Traps 1 | . 1 . . . . . . . . . . . Dispatch Records 1 | . . . . . 1 . . . . . . . Hauler Manifests 1 | . 1 . . . . . . . . . . . Zone Layout 1 | . . . . . 1 . . . . . . . Proto ID Catalog 1 | . . . 1 . . . . . . . . . Fabricator Hacks 7 | . . . . . . 2 . 5 . . . . Network Status 2 | . . . . . . 1 . 1 . . . . Load Schematic 3 | . . . . . . . . 3 . . . . Build 2 | . . . . . . 1 . 1 . . . . Repair Station Hacks 6 | . . . . . . 2 . 4 . . . . Scan Component 4 | . . . . . . 1 . 3 . . . . Repair 2 | . . . . . . 1 . 1 . . . . Recycling Unit Hacks . | . . . . . . . . . . . . . Scanalyzer 20 | . . . . . . 12 . 8 . . . . Insert Component 9 | . . . . . . 6 . 3 . . . . Analyze 10 | . . . . . . 6 . 4 . . . . Retrieve Study 1 | . . . . . . . . 1 . . . . Garrison Access Hacks . | . . . . . . . . . . . . . Unauthorized Hacks 3 | . 1 . . . . . . 2 . . . . Terminals 1 | . . . . . . . . 1 . . . . Assimilate 1 | . . . . . . . . 1 . . . . Fabricators 1 | . . . . . . . . 1 . . . . Recompile 1 | . . . . . . . . 1 . . . . Repair Stations . | . . . . . . . . . . . . . Recycling Units 1 | . 1 . . . . . . . . . . . Tunnel 1 | . 1 . . . . . . . . . . . Scanalyzers . | . . . . . . . . . . . . . Garrison Access . | . . . . . . . . . . . . . Data Cores Recovered 3 | . . . . . 2 . . 1 . . . . Used 1 | . . . . . . . . 1 . . . . Hacking Detections 30 | . 3 . . . 6 6 . 14 1 . . . Full Trace Events 6 | . . . . . 2 . . 4 . . . . Feedback Events . | . . . . . . . . . . . . . Feedback Blocked . | . . . . . . . . . . . . . Robot Schematics Acquired 5 | . . . . . . . . . . . 5 . Robots Built . | . . . . . . . . . . . . . Authchips . | . . . . . . . . . . . . . Time . | . . . . . . . . . . . . . Total Robot Build Rating . | . . . . . . . . . . . . . Part Schematics Acquired 17 | . . . . . . 6 . 3 . . 8 . Parts Built 3 | . . . . . . 2 . 1 . . . . Authchips 1 | . . . . . . . . 1 . . . . Time 86 | . . . . . . 42 . 44 . . . . Total Part Build Rating 12 | . . . . . . 8 . 4 . . . . Part Studies Acquired 1 | . . . . . . . . 1 . . . . Parts Repaired 2 | . . . . . . 1 . 1 . . . . Time 70 | . . . . . . 26 . 44 . . . . Parts Recycled . | . . . . . . . . . . . . . Recycled Matter . | . . . . . . . . . . . . . Retrieved Matter . | . . . . . . . . . . . . . Retrieved Components . | . . . . . . . . . . . . . Parts Scanalyzed 9 | . . . . . . 6 . 3 . . . . Part Schematics Acquired 9 | . . . . . . 6 . 3 . . . . Parts Damaged . | . . . . . . . . . . . . . Bothacking | -11 -10 -10 -10 -9 -8 -7 -7 -7 -7 -7 -7 -6 ------------ Run | Yrd Mat Min Exi Min Mat Fac Was Fac Low Low Dat Pro Used RIF Installer . | . . . . . . . . . . . . . Robots Hacked 1 | . . . . . . 1 . . . . . . Non-combat 1 | . . . . . . 1 . . . . . . Combat . | . . . . . . . . . . . . . Robot Hacks Applied 1 | . . . . . . 1 . . . . . . find_chute 1 | . . . . . . 1 . . . . . . Relay Couplers Released 3 | . . . . . . . . 3 . . . . Programmers 3 | . . . . . . . . 3 . . . . Fabnet Peak Effective % . | . . . . . . . . . . . . . Robots Rewired . | . . . . . . . . . . . . . Allies Hacked . | . . . . . . . . . . . . . Hacks Repelled . | . . . . . . . . . . . . . Allies | -11 -10 -10 -10 -9 -8 -7 -7 -7 -7 -7 -7 -6 -------- Run | Yrd Mat Min Exi Min Mat Fac Was Fac Low Low Dat Pro Total Allies 1 | . . . . . . . . 1 . . . . Largest Group 1 | . . . . . . . . 1 . . . . Highest-Rated Group 10 | . . . . . . . . 10 . . . . Highest-Rated Ally 10 | . . . . . . . . 10 . . . . Total Orders . | . . . . . . . . . . . . . Ally Attacks . | . . . . . . . . . . . . . Total Damage . | . . . . . . . . . . . . . Kills . | . . . . . . . . . . . . . Allies Corrupted . | . . . . . . . . . . . . . Allies Melted . | . . . . . . . . . . . . . Intel | -11 -10 -10 -10 -9 -8 -7 -7 -7 -7 -7 -7 -6 ------- Run | Yrd Mat Min Exi Min Mat Fac Was Fac Low Low Dat Pro Active Infowar (turns) 1346 | . . . . . 45 . . . 1067 143 89 2 Sensors 44 | . . . . . 44 . . . . . . . Terrain 1210 | . . . . . . . . . 1067 143 . . Traps 1 | . . . . . 1 . . . . . . . Jamming 91 | . . . . . . . . . . . 89 2 Robot Analysis Total 154 | . . . . . . . . . . . 154 . Derelict Logs Recovered 1 | . . . . . . . . . 1 . . . Drone Launches . | . . . . . . . . . . . . . Drone Recoveries . | . . . . . . . . . . . . . Exploration | -11 -10 -10 -10 -9 -8 -7 -7 -7 -7 -7 -7 -6 ------------- Run | Yrd Mat Min Exi Min Mat Fac Was Fac Low Low Dat Pro Turns Passed 9113 | . 1651 1222 691 475 1384 657 41 1304 1193 383 110 2 Spaces Moved 8651 | 1 543 353 216 145 762 1184 122 2598 1250 1326 145 6 Core . | . . . . . . . . . . . . . Treads 1379 | . 355 353 216 145 310 . . . . . . . Legs 655 | 1 188 . . . 452 14 . . . . . . Wheels . | . . . . . . . . . . . . . Hover . | . . . . . . . . . . . . . Flight 6617 | . . . . . . 1170 122 2598 1250 1326 145 6 Fastest Speed 17 | 120 120 320 320 320 125 31 31 26 26 17 27 35 Average Speed 76 | 120 251 327 320 320 141 32 31 29 26 26 28 35 Slowest Speed 480 | 120 400 480 320 320 320 125 31 107 26 27 35 35 Overloaded Moves 8 | . . . . . . . . . . 8 . . Propulsion Burnouts . | . . . . . . . . . . . . . Robots Hopped 29 | . . . . . . 3 2 22 . 2 . . Potential Cave-ins 3 | . . . . . . . . . 3 . . . Cave-ins Triggered . | . . . . . . . . . . . . . Exploration Rate (%) 57 | 3 78 67 60 60 45 28 85 58 96 83 81 3 Regions Visited 12 Branch Regions 7 Pre-discovered Areas 31 | . 1 1 . . . . . . . . 29 . Known Exits Taken 1 | . . . . . . . . 1 . . . . Unknown Exits Taken 9 | 1 1 1 1 1 1 . . . 1 1 1 . Scrap Searched 10 | . . 2 . . . . . . 3 5 . . Spaces Dug 49 | . . . . . . 4 . 33 12 . . . Terrain Destroyed 320 | . . 15 . . 1 4 . 66 142 92 . . Melee 47 | . . . . . . 4 . 33 10 . . . Projectile 15 | . . . . . 1 . . 3 11 . . . AOE 258 | . . 15 . . . . . 30 121 92 . . Terrain Rammed . | . . . . . . . . . . . . . Walls Destroyed . | . . . . . . . . . . . . . Machines Disabled . | . . . . . . . . . . . . . Actions | -11 -10 -10 -10 -9 -8 -7 -7 -7 -7 -7 -7 -6 --------- Run | Yrd Mat Min Exi Min Mat Fac Was Fac Low Low Dat Pro Total 10445 | . 706 378 218 150 947 1382 122 2963 2043 1343 187 6 Wait 1117 | . 55 . . . 53 63 . 214 710 5 17 . Move 8586 | . 542 352 215 144 761 1178 118 2555 1249 1322 144 6 Hop 25 | . . . . . . 3 1 20 . 1 . . Pick Up 105 | . 23 . 2 1 34 17 3 12 9 1 3 . Fast Attach 12 | . 1 1 . . 4 1 . 2 . . 3 . Attach 26 | . . 3 . . 7 7 . 2 3 2 2 . Detach 2 | . . . . . . 1 . . 1 . . . Swap 81 | . 10 1 . . 13 14 . 26 13 1 3 . Drop 45 | . 10 . 1 1 9 15 . 9 . . . . Fire 253 | . 63 16 . . 59 12 . 49 43 11 . . Melee 132 | . . . . . . 41 . 61 15 . 15 . Ram . | . . . . . . . . . . . . . Kick 7 | . 1 . . . 6 . . . . . . . Crush 11 | . 1 5 . 4 1 . . . . . . . Escape Stasis 43 | . . . . . . 30 . 13 . . . . Rewire . | . . . . . . . . . . . . . Trap . | . . . . . . . . . . . . . Miscellaneous . | . . . . . . . . . . . . . Route ------- -11/Scrapyard -10/Materials (discovered 4 exits: [*Mat x2] / *Min / [*Sub]) -10/Mines -10/Exiles -9/Mines -8/Materials -7/Factory -7/Waste -7/Factory (discovered 4 exits: [*Fac x2] / *Low x2) -7/Lower Caves -7/Lower Caves -7/Data Miner -6/Proximity Caves History --------- Turn | Location | Event 1 | -11/Scrapyard | Discovered new exit (range 0) 1 | -11/Scrapyard | Entered Materials 305 | -10/Materials | Build established: Mutant 695 | -10/Materials | Discovered new exit (range 10) 779 | -10/Materials | Discovered new exit (range 5) 1256 | -10/Materials | Discovered new exit (range 16) 1581 | -10/Materials | Discovered new exit (range 12) 1652 | -10/Materials | Entered Mines 2541 | -10/Mines | Deemed a non-threat by the Exiles lab entrance 2544 | -10/Mines | Discovered new exit (range 5) 2600 | -10/Mines | Learned location of Storage (-9) 2680 | -10/Mines | Assembled infested the area 2720 | -10/Mines | Core integrity fell below 50% 2773 | -10/Mines | Destroyed 8 combat bots 2781 | -10/Mines | Lost 4 parts (1p1n1u1w) 2874 | -10/Mines | Entered Exiles 2964 | -10/Exiles | Met 8R-AWN 3031 | -10/Exiles | Met EX-HEX 3114 | -10/Exiles | Met EX-BIN 3156 | -10/Exiles | Aligned with FarCom system 3159 | -10/Exiles | Given EX-Vault access code 3233 | -10/Exiles | Opened EX-Vault 3265 | -10/Exiles | Found Gui. Plasma Cannon 3273 | -10/Exiles | Found Lightpack 2.0 3335 | -10/Exiles | Warned to stay clear of 0b10 Research branches 3421 | -10/Exiles | Met EX-DEC 3536 | -10/Exiles | Discovered new exit (range 11) 3565 | -10/Exiles | Stole two prototypes: Lightpack 2.0, Gui. Plasma Cannon 3565 | -10/Exiles | Entered Mines 3876 | -9/Mines | Received a Rocket Launcher from a helpful Derelict 3972 | -9/Mines | Discovered new exit (range 10) 4040 | -9/Mines | Entered Materials 4040 | -8/Materials | Evolved 4 slots: Utility x4 4408 | -8/Materials | Build established: Hauler-Mutant 5200 | -8/Materials | Discovered new exit (range 16) 5424 | -8/Materials | Entered Factory 5424 | -7/Factory | Evolved 2 slots: Propulsion x2 5426 | -7/Factory | FarCom data flow suspended 5496 | -7/Factory | Repaired Lgt. Armor Plating 5652 | -7/Factory | Fabricated Adv. Terrain Scan Processor? 6016 | -7/Factory | Build established: Hauler-Sprinter 6057 | -7/Factory | Cargo convoy interrupted 6081 | -7/Factory | Sucked down chute 6081 | -7/Factory | Entered Waste 6093 | -7/Waste | Spotted C-40 Crusher 6096 | -7/Waste | EMP discharged 6100 | -7/Waste | Spotted C-40 Crusher 6110 | -7/Waste | Spotted C-40 Crusher 6116 | -7/Waste | Spotted C-40 Crusher 6116 | -7/Waste | Spotted C-40 Crusher 6116 | -7/Waste | Spotted C-40 Crusher 6118 | -7/Waste | Discovered new exit (range 10) 6122 | -7/Waste | Entered Factory 6282 | -7/Factory | Identified exit to Lower Caves 6374 | -7/Factory | Discovered new exit (range 14) 6626 | -7/Factory | Repaired Mic. Nuclear Core 6675 | -7/Factory | Discovered new exit (range 14) 7322 | -7/Factory | Search patrols dispatched 7332 | -7/Factory | Fabricated Cld. VTOL Module (x1) 7426 | -7/Factory | Entered Lower Caves 7550 | -7/Lower Caves | Spotted B-75 Beast 7584 | -7/Lower Caves | Core integrity fell below 50% 7623 | -7/Lower Caves | Attracted the attention of an 0b10 checkpoint 7734 | -7/Lower Caves | Discovered new exit (range 5) 7739 | -7/Lower Caves | Learned Factory non-interactive machine intel 8619 | -7/Lower Caves | Entered another Lower Caves area 8621 | -7/Lower Caves | Encountered a Master Thief 8621 | -7/Lower Caves | Encountered a Master Thief 8637 | -7/Lower Caves | Encountered a Master Thief 8638 | -7/Lower Caves | Spotted B-75 Beast 8854 | -7/Lower Caves | Attracted the attention of an 0b10 checkpoint 8876 | -7/Lower Caves | Discovered new exit (range 8) 8899 | -7/Lower Caves | Attracted the attention of an 0b10 outpost 9001 | -7/Lower Caves | Ambushed by wild Derelicts 9002 | -7/Lower Caves | Entered Data Miner 9002 | -7/Data Miner | Discovered new exit (range 6) 9008 | -7/Data Miner | Met Data Miner 9017 | -7/Data Miner | Learned location of Section 7 (-2) 9017 | -7/Data Miner | Acquired the access code to Warlord's prototype stash 9019 | -7/Data Miner | Received God Mode back door access code from Data Miner 9046 | -7/Data Miner | Destroyed Data Miner 9049 | -7/Data Miner | Found Prototype Hackware 9051 | -7/Data Miner | Found Prototype Hackware 9052 | -7/Data Miner | Interfaced with the Data Conduit 9103 | -7/Data Miner | Identified Deep Network Scanner 9104 | -7/Data Miner | Core integrity fell below 20% 9107 | -7/Data Miner | Identified Ghost Barrier 9112 | -7/Data Miner | Entered Proximity Caves 9114 | -6/Proximity Caves | Destroyed by G-50 Soldier with Heavy Laser Last Messages --------------- Downloaded central machine database. Downloaded 28 destinations. Downloaded encryption format records. Connection remotely terminated. 09094_ Spear+ destroyed. 09098_ Lightpack 2.0 destroyed. 09098_ Cld. VTOL Module destroyed. 09101_ Acquired Xenon Bombardment Thruster. 09103_ Mic. Nuclear Core destroyed. 09103_ Xenon Bombardment Thruster destroyed. 09103_ Acquired Prototype Hackware. 09103_ Identified Deep Network Scanner. 09105_ Xenon Bombardment Thruster destroyed. 09107_ Acquired Prototype Hackware. 09107_ Identified Ghost Barrier. 09107_ Adv. Targeting Computer destroyed. 09107_ Lgt. Armor Plating destroyed. 09107_ Cld. VTOL Module destroyed. LOCATION=UNKNOWN GOAL=ESCAPE Map ----- +----------------------------------------------------+ | ?????????????????????????????????????????????????? | | ?????????????????????????????????????????????????? | | ?????????????????????????????????????????????????? | | ?????????????????????????????????????????????????? | | ?????????????????????????????????????????????????? | | ?????????????????????????????????????????????????? | | ?????????????????????????????????????????????????? | | ?????????????????????????????????????????????????? | | ?????????????????????????????????????????????????? | | ?????????????????????????????????????????????????? | | ?????????????????????????????????????????????????? | | ?????????????????????????????????????????????????? | | ?????????????????????????????????????????????????? | | ?????????????????????????????????????????????????? | | ?????????????????????????????????????????????????? | | ?????????????????????????????????????????????????? | | ?????????????????????????????????????????????????? | | ????????????????####?????????????????????????????? | | ????????????????? #????????????????????????????? | | ????????????????? ????????????????????????????? | | ?????????????????# ????#####???????????????????? | | ????????????????## ???## #???????????????????? | | ???????????????## ??## #???????????????????? | | ???????????????# ?## #???????????????????? | | ???????????????# ## #???????????????????? | | ???????????????## @ #????????????????????? | | ???????????????# g ####????????????????????? | | ???????????????# ##???????????????????????? | | ???????????????# ## l##????????????????????????? | | ??????????????????## g #?????????????????????????? | | ???????????????????# ##?????????????????????????? | | ???????????????????# #??????????????????????????? | | ???????????????????# #??????????????????????????? | | ???????????????????# #??????????????????????????? | | ???????????????????# #??????????????????????????? | | ???????????????????# ??????????????????????????? | | ???????????????????# ??????????????????????????? | | ???????????????????# ??????????????????????????? | | ???????????????????# ??????????????????????????? | | ???????????????????# ??????????????????????????? | | ??????????????????? ??????????????????????????? | | ???????????????????####??????????????????????????? | | ?????????????????????????????????????????????????? | | ?????????????????????????????????????????????????? | | ?????????????????????????????????????????????????? | | ?????????????????????????????????????????????????? | | ?????????????????????????????????????????????????? | | ?????????????????????????????????????????????????? | | ?????????????????????????????????????????????????? | | ?????????????????????????????????????????????????? | +----------------------------------------------------+ Best States ------------- Heat Dissipation 48 Energy Generation 18 Energy Capacity 275 Matter Stores 300 Matter Capacity 300 Sight Range 16 Robot Scan Range 14 Terrain Scan Range 16 Terrain Scan Density 210 Jamming Range 12 Armor Coverage 150 Evasion (%) 66 Targeting Accuracy 8 Core Analysis 6 Recoil Reduction 2 Offensive Hacking 25 Defensive Hacking 20 Authchip Count 1 Item Schematics ----------------- Adv. Terrain Scan Processor | -7/Factory | Scanalyzed Mic. Nuclear Core | -7/Factory | Scanalyzed Hacking Suite | -7/Factory | Scanalyzed Microactuators | -7/Factory | Scanalyzed Hvy. Missile Launcher | -7/Factory | Scanalyzed Cld. Particle Cannon | -7/Factory | Scanalyzed Cld. VTOL Module | -7/Factory | Scanalyzed Micro-nuke Launcher | -7/Factory | Scanalyzed Imp. Light Armor Plating | -7/Factory | Scanalyzed Combat Drone Bay | -7/Data Miner | Free Lgt. Regenerative Plating | -7/Data Miner | Free Biomechanical Wings | -7/Data Miner | Free Thermal Defense Suite | -7/Data Miner | Free Imp. Heavy Laser | -7/Data Miner | Free Linear Gravjet | -7/Data Miner | Free Mni. Drone Bay | -7/Data Miner | Free Lance | -7/Data Miner | Free Robot Schematics ------------------ A-15 Conveyor | -7/Data Miner | Free G-47 Trooper | -7/Data Miner | Free C-17 Slicer | -7/Data Miner | Free S-27 Virus | -7/Data Miner | Free G-50 Soldier | -7/Data Miner | Free Fabricated ------------ Adv. Terrain Scan Processor | x2 | -7/Factory | Preloaded Cld. VTOL Module | x1 | -7/Factory | Authchip Repaired ---------- Lgt. Armor Plating | 78% | -7/Factory Mic. Nuclear Core | 14% | -7/Factory Studied --------- Spear | -7/Factory | Hacked Alien Tech Used ----------------- None Achievements -------------- None Challenges ------------ None Game ------ Seed SurgeSuperdenseRipteeth Manual? 0 Play Time 01:15:35 Cumulative 255.3 hours Start 2026.01.02 @ 13:53:09 End 2026.01.02 @ 23:34:58 Sessions 3 Manual Loads 0 Difficulty Rogue Special Mode None Game No. 332 Rogue 331 Adventurer 1 Explorer 0 Win Type - Total 2 Types 1/0/0/1/0/0/0/0/0/0 Lore% 72 Gallery% 66 Achievement% 55 Wizard Run 0 Options --------- Layout 0 ASCII 0 Keyboard 0 Movement Numpad Keybinds 0 Fullscreen 1 Font 24/Smallcaps Map View 76x50 Zoom Use 0% Tactical HUD 1 Map Filters NONE Filters NONE Steam 1 RUN: 9a757a23-426e-41cb-8531-5d8e65b45a21